bitfinex/quotes_ETHUSD_20241003
["timestamp","ask_amount","ask_price","bid_price","bid_amount"]
[1727955940644,4.23533,2361.1,2360.7,4.2359]
[1727955940799,0.7541,2361.0,2360.7,4.2359]
[1727955941004,0.7541,2361.0,2360.7,4.23587]
[1727955941439,0.7541,2361.0,2360.8,4.23577]
[1727955941678,4.23586,2360.8,2360.4,4.23649]
[1727955941953,1.253038,2361.0,2360.4,4.23649]
[1727955941954,0.7541,2360.7,2360.4,4.23643]
[1727955942252,0.7541,2360.7,2360.5,4.23625]
[1727955942748,0.7541,2360.7,2360.4,4.23643]
[1727955945545,4.99028,2360.7,2360.1,0.7684]
[1727955945840,4.99028,2360.7,2360.0,4.23719]
[1727955945841,4.2368,2360.3,2359.7,4.23773]
[1727955946042,8.47433,2360.1,2359.6,5.06753]
[1727955946228,4.2371,2360.1,2359.7,4.23781]
[1727955947445,0.787,2360.2,2359.7,4.23781]
[1727955947609,5.02395,2360.2,2359.7,4.23781]
[1727955949442,4.23749,2359.9,2359.5,4.23817]
[1727955949612,0.7694,2359.7,2359.2,5.04812]
[1727955949937,0.7694,2359.7,2359.1,4.23882]
[1727955949938,4.23801,2359.6,2359.1,4.23882]
[1727955950106,4.23801,2359.6,2359.2,4.23872]
[1727955950427,4.23801,2359.6,2358.7,0.8095]
[1727955950428,4.23879,2359.2,2358.7,0.8095]
[1727955950764,4.23909,2359.0,2358.6,4.23969]
[1727955951046,4.23892,2359.1,2358.6,8.4794]
[1727955951258,4.23892,2359.1,2358.7,4.2396]
[1727955951556,4.23874,2359.2,2358.7,4.2396]
[1727955952263,4.23908,2359.0,2358.6,4.23969]
[1727955952466,4.23963,2358.7,2358.2,4.2404]
[1727955952672,4.23963,2358.7,2358.0,0.7821]
[1727955952673,4.99364,2358.6,2358.0,5.02287]
[1727955952949,5.492578,2358.6,2358.0,4.24077]
[1727955953167,5.492578,2358.6,2358.0,4.2408]
[1727955953312,5.492578,2358.6,2357.9,4.24093]
[1727955953313,4.24034,2358.3,2357.9,4.24093]
[1727955953511,0.7517,2358.4,2358.1,4.24062]
[1727955953822,4.23974,2358.7,2358.1,4.24062]
[1727955953823,4.99144,2358.7,2358.2,4.24041]
[1727955954034,4.99144,2358.7,2358.2,4.24046]
[1727955954263,0.7517,2358.7,2358.3,4.24032]
[1727955954431,0.7517,2358.7,2358.3,8.48056]
[1727955954634,0.7517,2358.7,2358.4,4.24014]
[1727955954827,4.99132,2358.7,2358.3,4.24024]
[1727955955149,0.7517,2358.7,2358.3,4.24024]
[1727955955467,0.7722,2358.9,2358.6,4.2398]
[1727955955814,4.23998,2358.5,2357.6,0.7573]
[1727955956112,0.8316,2358.1,2357.6,4.99889]
[1727955956339,0.8316,2358.1,2357.7,4.24141]
[1727955956340,5.07238,2358.1,2357.7,4.24141]
[1727955956543,0.8316,2358.1,2357.7,4.24141]
[1727955957462,0.8316,2358.1,2357.6,4.24159]
[1727955957463,4.24089,2358.0,2357.6,4.24159]
[1727955957760,9.23137293,2358.0,2357.4,8.48377]
[1727955958062,9.23137293,2358.0,2357.5,4.24176]
[1727955958063,0.74944293,2358.0,2357.5,4.24176]
[1727955958263,0.8316,2358.1,2357.5,4.24176]
[1727955958424,5.07235,2358.1,2357.7,4.2414]
[1727955958764,4.24107,2357.9,2357.5,4.24176]
[1727955958970,9.31316,2358.1,2357.5,8.48345]
[1727955959115,5.98342294,2358.1,2357.5,8.48345]
[1727955959315,5.98342294,2358.1,2357.4,4.24184]
[1727955959316,4.24115,2357.9,2357.4,4.24184]
[1727955959562,0.782,2358.0,2357.3,4.24211]
[1727955959563,0.502315,2357.8,2357.3,4.24211]
[1727955959739,0.782,2358.0,2357.6,4.24159]
[1727955960557,3.0,2358.7,2357.5,4.24177]
[1727955960558,0.782,2358.4,2357.8,4.2411]
[1727955960915,5.02226,2358.4,2357.9,4.24104]
[1727955962637,4.24049,2358.3,2357.8,4.2411]
[1727955962822,4.24049,2358.3,2357.8,8.48225]
[1727955963016,4.24049,2358.3,2357.8,8.48226]
[1727955963219,5.02226,2358.4,2357.9,4.24104]
[1727955963457,5.554486,2358.4,2357.9,4.24104]
[1727955963825,5.02226,2358.4,2358.0,4.24087]
[1727955964022,9.26255,2358.4,2357.9,4.24105]
[1727955964268,9.26254,2358.4,2357.9,4.24105]
[1727955964455,5.02226,2358.4,2357.9,4.24105]
[1727955964755,5.02226,2358.4,2358.0,4.24086]
[1727955965521,4.24073,2358.1,2357.6,4.24152]
[1727955965948,8.27882936,2358.3,2357.3,9.26703]
[1727955965949,4.24133,2357.8,2357.3,9.26703]
[1727955966426,5.02288,2358.0,2357.6,4.24159]
[1727955966619,4.24045,2358.3,2357.9,4.24106]
[1727955966972,0.7694,2358.5,2358.2,4.24039]
[1727955967264,7.39,2359.0,2358.4,4.24006]
[1727955967265,5.00897,2358.8,2358.4,4.24006]
[1727955967565,5.00897,2358.8,2358.5,4.23995]
[1727955967566,0.7694,2358.8,2358.5,4.23995]
[1727955967720,0.7694,2358.8,2358.6,4.23979]
[1727955968124,0.826,2359.4,2358.5,4.03837936]
[1727955968335,0.826,2359.4,2358.2,0.8054]
[1727955968336,0.826,2359.4,2359.1,4.23881]
[1727955968563,0.826,2359.4,2358.8,0.7515]
[1727955968564,0.826,2359.4,2359.2,4.23871]
[1727955968857,0.781,2359.7,2359.3,4.23854]
[1727955969234,0.781,2359.9,2359.4,4.23831]
[1727955969536,0.781,2359.9,2359.4,4.23825]
[1727955969758,0.781,2359.9,2359.5,4.23817]
[1727955970126,0.781,2359.9,2359.4,4.23825]
[1727955970127,5.01848,2359.9,2359.4,8.47652]
[1727955970437,5.01848,2359.9,2359.4,0.847652]
[1727955970438,0.781,2359.9,2359.4,0.847652]
[1727955970638,4.23703,2360.2,2359.4,0.847652]
[1727955970639,0.7955,2360.2,2359.7,4.23772]
[1727955971028,0.7955,2360.2,2359.8,4.23751]
[1727955971234,0.7955,2360.2,2359.7,4.23772]
[1727955971235,5.03243,2360.2,2359.7,4.23772]
[1727955971570,5.03243,2360.2,2359.7,5.085296]
[1727955971768,5.03243,2360.2,2359.7,5.085266]
[1727955971975,5.03243,2360.2,2359.8,4.23752]
[1727955971976,0.7955,2360.2,2359.8,4.23752]
[1727955972437,0.7955,2360.2,2359.9,4.23745]
[1727955973068,0.7955,2360.2,2359.8,4.23752]
[1727955973253,0.7955,2360.2,2359.8,8.47508]
[1727955973663,0.7955,2360.2,2359.8,4.23752]
[1727955973874,4.23721,2360.1,2359.6,4.23784]
[1727955974084,5.03258,2360.2,2359.5,4.23816]
[1727955974290,4.23736,2360.0,2359.5,4.23816]
[1727955974443,4.23736,2360.0,2359.6,4.23798]
[1727955974772,4.23736,2360.0,2359.5,8.47626]
[1727955975203,4.23736,2360.0,2359.5,8.47618]
[1727955975478,4.23736,2360.0,2359.6,4.23795]
[1727955975769,4.23746,2359.9,2359.5,5.085788]
[1727955975980,8.47471,2360.0,2359.5,5.085638]
[1727955976135,4.23749,2359.9,2359.5,4.23802]
[1727955976332,4.23747,2359.9,2359.5,4.23802]
[1727955976656,0.7955,2360.2,2359.6,0.08475782]
[1727955976855,0.7955,2360.2,2359.9,4.23736]
[1727955977363,22.6,2360.8,2359.7,4.23776]
[1727955977364,4.23642,2360.5,2360.0,4.23715]
[1727955977665,4.99246,2360.8,2360.3,4.23663]
[1727955977898,0.07379908,2361.4,2360.3,4.23663]
[1727955977899,4.23556,2361.0,2360.5,8.47261]
[1727955978098,4.23556,2361.0,2360.6,4.23615]
[1727955978385,4.2355,2361.0,2360.5,4.23625]
[1727955978539,5.158257,2361.0,2360.5,4.23625]
[1727955979086,4.23574,2360.9,2360.3,4.23664]
[1727955979384,5.158307,2361.0,2360.5,4.23623]
[1727955979581,4.99207,2361.1,2360.6,4.23605]
[1727955979939,0.7566,2361.1,2360.2,4.23679]
[1727955980134,4.23611,2360.7,2360.2,4.23679]
[1727955980567,4.23568,2360.9,2360.4,4.2364]
[1727955981475,4.23568,2360.9,2360.3,4.2367]
[1727955981476,0.922787,2360.9,2360.3,4.2367]
[1727955981687,0.7566,2361.1,2360.2,4.2369]
[1727955981688,4.23621,2360.6,2360.2,4.2369]
[1727955981838,4.23683,2360.3,2359.8,4.23754]
[1727955982043,4.23683,2360.3,2359.9,4.23746]
[1727955983105,4.23683,2360.3,2359.9,8.47485]
[1727955983304,5.083643,2360.5,2360.0,4.23711]
[1727955983508,5.083643,2360.5,2359.7,0.7661]
[1727955983509,0.7963,2360.6,2359.7,0.7661]
[1727955983731,9.26887,2360.6,2360.1,4.23708]
[1727955983929,0.7963,2360.6,2360.0,4.23717]
[1727955984100,4.23693,2360.2,2359.7,4.23782]
[1727955984298,4.23693,2360.2,2359.8,4.23762]
[1727955984299,4.660623,2360.2,2359.8,4.23762]
[1727955985190,4.660623,2360.2,2359.6,4.23794]
[1727955985521,4.660623,2360.2,2359.7,4.23779]
[1727955985697,0.423693,2360.2,2359.8,4.23763]
[1727955985880,0.423693,2360.2,2359.9,4.23746]
[1727955986076,8.1863,2360.6,2359.8,0.795]
[1727955986335,8.1863,2360.6,2360.2,4.23684]
[1727955986623,8.1863,2360.6,2360.3,4.23664]
[1727955986825,4.2364,2360.5,2360.1,4.23701]
[1727955987503,0.7963,2360.6,2360.1,4.23701]
[1727955987810,5.03254,2360.6,2360.2,4.2368]
[1727955988008,0.7963,2360.6,2360.3,4.23673]
[1727955988730,4.23588,2360.8,2359.9,4.23744]
[1727955988883,4.23587,2360.8,2360.3,4.23669]
[1727955989088,4.23604,2360.7,2360.3,4.23669]
[1727955989322,4.23604,2360.7,2360.3,8.47333]
[1727955989895,8.4722,2360.7,2360.2,4.23689]
[1727955990431,4.23604,2360.7,2360.3,4.23673]
[1727955990632,4.2365,2360.5,2360.1,4.23707]
[1727955990801,4.23621,2360.6,2360.0,4.23714]
[1727955991004,4.23621,2360.6,2360.1,4.23702]
[1727955991416,8.47252,2360.6,2360.1,4.23702]
[1727955991727,9.4121204,2360.6,2360.1,4.23702]
[1727955992542,5.1758104,2360.6,2360.1,4.23702]
[1727955992830,8.47253,2360.6,2360.1,4.23702]
[1727955993030,4.23646,2360.5,2360.1,4.23702]
[1727955993232,0.8175,2360.4,2360.1,4.23702]
[1727955993444,5.05416,2360.4,2360.0,4.23726]
[1727955993741,0.8175,2360.4,2360.1,4.2371]
[1727955995134,0.8175,2360.4,2360.0,8.47444]
[1727955996628,5.05408,2360.4,2360.0,4.23718]
[1727955997339,10.21982,2360.4,2360.0,4.23718]
[1727955997493,10.21982,2360.4,2359.8,4.23752]
[1727955997698,4.2369,2360.3,2359.9,4.23746]
[1727955998936,5.98313,2360.4,2359.9,4.23746]
[1727955999349,4.23676,2360.3,2359.9,4.23746]
[1727956002133,0.8175,2360.4,2360.0,4.2372]
[1727956002662,0.8175,2360.4,2360.0,0.847466]
[1727956002976,0.8175,2360.4,2360.1,4.23707]
[1727956003378,5.02539,2360.6,2360.1,8.4741]
[1727956003557,0.7891,2360.6,2360.0,4.2372]
[1727956003758,4.23676,2360.3,2359.8,0.7589]
[1727956003963,4.23676,2360.3,2359.9,4.23737]
[1727956004164,4.23676,2360.3,2359.9,4.23732]
[1727956004383,0.8331,2360.2,2359.9,4.23732]
[1727956005184,0.8331,2360.2,2359.9,8.47472]
[1727956005353,0.8331,2360.2,2359.5,7.80080724]
[1727956005576,0.8331,2360.2,2359.9,8.47474]
[1727956005780,0.8331,2360.2,2359.9,4.23735]
[1727956006019,5.07013,2360.2,2359.7,8.47543]
[1727956006603,5.07013,2360.2,2359.8,4.23761]
[1727956006759,0.8331,2360.2,2359.7,4.23768]
[1727956007206,0.8331,2360.2,2359.8,4.23753]
[1727956007508,0.8331,2360.2,2359.9,4.23733]
[1727956008676,0.8331,2360.2,2359.7,0.62004657]
[1727956008875,5.07005,2360.2,2359.8,4.23761]
[1727956009092,5.07005,2360.2,2359.9,4.23738]
[1727956009093,0.8331,2360.2,2359.9,4.23738]
[1727956009695,0.8331,2360.2,2359.8,4.2376]
[1727956010099,5.07004,2360.2,2359.8,4.2376]
[1727956010318,0.7867,2359.8,2359.2,0.8106]
[1727956010600,0.7867,2359.8,2359.6,4.23792]
[1727956012869,7.39,2360.3,2360.0,4.23728]
[1727956013144,1.76812787,2360.7,2360.3,4.23674]
[1727956013145,0.88072535,2360.7,2360.3,4.23674]
[1727956013354,0.7984,2360.7,2360.4,4.23647]
[1727956013925,0.7984,2360.7,2360.2,0.7787]
[1727956014158,0.7984,2360.7,2360.3,4.23674]
[1727956014159,5.03446,2360.7,2360.3,4.23674]
[1727956014455,5.03446,2360.7,2360.3,8.4734]
[1727956014616,5.03446,2360.7,2360.3,4.23666]
[1727956016264,10.15130535,2360.7,2360.3,4.23666]
[1727956016615,5.91518535,2360.7,2360.3,4.23666]
[1727956016819,5.91518535,2360.7,2360.3,5.25247267]
[1727956017123,5.91518535,2360.7,2360.3,9.48914267]
[1727956017322,5.91518535,2360.7,2360.3,8.47333]
[1727956017947,5.91518535,2360.7,2360.3,4.23666]
[1727956018321,4.23621,2360.6,2360.2,4.23688]
[1727956018656,4.23643,2360.5,2360.0,0.7831]
[1727956018958,4.23643,2360.5,2360.1,4.23709]
[1727956019759,4.23643,2360.5,2360.1,8.47411]
[1727956020458,4.23643,2360.5,2360.1,4.23702]
[1727956020870,4.23643,2360.5,2360.1,8.47404]
[1727956021363,5.11715535,2360.5,2359.8,0.7831]
[1727956021662,5.11747535,2360.3,2359.9,4.23733]
[1727956021862,5.11747535,2360.3,2359.7,4.23765]
[1727956021863,4.23701,2360.2,2359.7,4.23769]
[1727956022163,0.8286,2360.1,2359.8,4.2376]
[1727956022378,2.43656848,2360.1,2359.5,4.23802]
[1727956022578,5.11817535,2360.0,2359.6,4.23799]
[1727956022720,0.88072535,2359.9,2359.6,4.23799]
[1727956022925,0.88072535,2360.0,2359.8,4.23752]
[1727956023263,2.1546959,2360.1,2359.7,4.23779]
[1727956023264,5.94643535,2360.1,2359.7,4.23779]
[1727956023563,0.88072535,2360.0,2359.7,4.23779]
[1727956023764,1.70932535,2360.1,2359.7,4.23779]
[1727956023968,1.70932535,2360.1,2359.6,4.23788]
[1727956023969,2.61338726,2360.1,2359.6,4.23799]
[1727956024268,5.11825535,2359.9,2359.4,4.23826]
[1727956025084,5.11825535,2359.9,2359.5,4.23808]
[1727956025385,5.94327535,2359.8,2359.4,8.47655]
[1727956025884,1.70562535,2359.8,2359.5,4.23818]
[1727956026049,0.8249,2359.8,2359.6,4.23799]
[1727956026592,0.88072535,2359.9,2359.8,4.23764]
[1727956026742,0.88072535,2360.2,2359.9,4.23731]
[1727956026941,1.68582535,2360.3,2360.0,4.23719]
[1727956027341,0.88072535,2360.2,2360.0,4.23719]
[1727956027541,1.68582535,2360.3,2360.0,4.23719]
[1727956028056,0.88072535,2360.2,2359.9,4.23744]
[1727956028380,5.92261535,2360.3,2359.9,4.23744]
[1727956029380,1.68582535,2360.3,2360.0,4.23719]
[1727956029681,0.88072535,2360.4,2360.2,4.23692]
[1727956029842,4.3260959,2360.5,2360.2,4.23692]
[1727956029843,3.88072535,2360.5,2360.2,4.23692]
[1727956030756,0.88072535,2360.4,2360.1,4.23693]
[1727956031539,0.88072535,2360.3,2360.1,4.23693]
[1727956033674,0.88072535,2360.3,2359.9,4.69685112]
[1727956033911,0.88072535,2360.3,2359.9,8.93420112]
[1727956034071,0.88072535,2360.3,2359.9,8.93422112]
[1727956034393,0.88072535,2360.3,2359.9,4.23735]
[1727956034596,1.68442535,2360.2,2359.9,4.23735]
[1727956034811,0.8037,2360.2,2359.9,4.23735]
[1727956034969,0.8037,2360.2,2359.9,8.47474]
[1727956035174,1.68442535,2360.2,2359.9,4.23735]
[1727956035496,4.23747,2359.9,2359.5,4.238]
[1727956035704,4.23747,2359.9,2359.3,7.44]
[1727956035705,5.04137,2359.8,2359.4,4.23829]
[1727956035857,5.92209535,2359.8,2359.4,4.23829]
[1727956036056,5.04137,2359.8,2359.4,4.23829]
[1727956036284,0.8037,2359.8,2359.4,4.23829]
[1727956036472,0.8037,2359.8,2359.5,4.23816]
[1727956036885,1.68442535,2359.8,2359.5,4.23816]
[1727956037073,0.8037,2359.8,2359.5,4.23816]
[1727956037400,0.8037,2359.8,2359.4,4.23829]
[1727956037612,4.23784,2359.7,2359.3,4.23852]
[1727956037908,4.23802,2359.6,2359.2,4.23869]
[1727956038195,5.11856535,2359.7,2359.3,4.23847]
[1727956038405,0.88072535,2359.7,2359.3,4.23846]
[1727956038568,0.88072535,2359.7,2359.4,4.23829]
[1727956038769,2.40922748,2359.8,2359.5,4.23815]
[1727956039000,0.88072535,2359.8,2359.5,4.23818]
[1727956039305,1.3260959,2359.9,2359.6,4.23797]
[1727956039306,0.88072535,2359.9,2359.6,4.23797]
[1727956039487,5.11819535,2359.9,2359.5,4.23818]
[1727956039670,5.11819535,2359.9,2359.5,8.47625]
[1727956039872,5.11819535,2359.9,2359.5,4.23807]
[1727956040075,5.11819535,2359.9,2359.5,8.47616]
[1727956040698,0.88072535,2359.9,2359.6,4.23793]
[1727956042762,5.01366,2359.8,2359.2,4.23872]
[1727956042987,4.2379,2359.7,2359.3,4.23846]
[1727956043400,4.23807,2359.6,2359.2,4.23872]
[1727956043614,4.23807,2359.6,2358.7,4.23949]
[1727956043615,4.23893,2359.1,2358.7,4.23962]
[1727956044114,4.2389,2359.2,2358.7,4.23955]
[1727956044405,5.89519535,2359.3,2358.9,4.23915]
[1727956044574,5.01447,2359.3,2358.9,4.23915]
[1727956044775,5.82135883,2359.3,2358.8,4.23933]
[1727956044970,4.23879,2359.2,2358.8,4.23933]
[1727956045197,4.23879,2359.2,2358.8,8.47868]
[1727956045373,5.82135883,2359.3,2358.8,4.23933]
[1727956045574,5.82135883,2359.3,2358.9,4.23911]
[1727956047317,10.06000883,2359.3,2358.9,4.23911]
[1727956047460,5.82135883,2359.3,2358.9,4.23911]
[1727956048089,5.82135883,2359.3,2358.9,8.47825]
[1727956048418,1.58278883,2359.3,2359.0,4.23905]
[1727956048582,1.58278883,2359.3,2359.1,4.23889]
[1727956048583,0.7759,2359.3,2359.1,4.23889]
[1727956048913,8.1633,2359.6,2359.4,4.23828]
[1727956049076,8.1633,2359.6,2359.1,0.7541]
[1727956049077,0.7733,2359.8,2359.5,4.23818]
[1727956049277,0.7733,2359.8,2359.6,4.23789]
[1727956050884,0.7733,2359.8,2359.3,4.23838]
[1727956051078,0.7733,2359.8,2359.5,8.47623]
[1727956051373,0.7733,2359.8,2359.2,4.23858]
[1727956051374,5.01095,2359.8,2359.2,4.23858]
[1727956051582,4.23786,2359.7,2359.3,4.23854]
[1727956052296,4.238,2359.6,2359.2,4.23865]
[1727956052476,4.23786,2359.7,2359.3,4.23853]
[1727956052808,8.47578,2359.7,2359.3,4.23853]
[1727956052976,4.23786,2359.7,2359.3,4.23853]
[1727956053164,4.23786,2359.7,2359.2,8.47724]
[1727956053165,8.47584,2359.7,2359.2,8.47724]
[1727956053361,4.23786,2359.7,2359.3,4.23841]
[1727956053776,4.23824,2359.5,2359.1,4.23887]
[1727956053978,0.8222,2359.4,2359.1,4.23887]
[1727956055102,5.06057,2359.4,2359.1,4.23887]
[1727956056384,0.8222,2359.4,2359.1,4.23887]
[1727956056784,0.8222,2359.4,2359.0,4.23905]
[1727956056970,0.8222,2359.4,2359.1,4.23886]
[1727956059413,0.8222,2359.4,2359.0,4.23905]
[1727956059585,0.8222,2359.4,2359.1,4.23877]
[1727956060206,5.06058,2359.4,2359.0,4.23905]
[1727956060807,0.8222,2359.4,2359.0,4.23898]
[1727956060983,0.8222,2359.4,2359.1,4.23889]
[1727956061311,0.8222,2359.4,2358.6,5.02049]
[1727956061312,4.23886,2359.2,2358.6,5.02049]
[1727956061517,0.7829,2359.1,2358.6,5.02049]
[1727956061716,5.0219,2359.1,2358.6,4.23969]
[1727956062225,4.23917,2359.0,2358.6,4.23969]
[1727956062527,4.23917,2359.0,2358.6,8.47933]
[1727956062813,4.23917,2359.0,2358.7,4.23962]
[1727956063020,0.7829,2359.1,2358.8,4.23943]
[1727956063198,4.23871,2359.3,2358.9,4.23918]
[1727956063515,6.41933893,2359.3,2358.9,4.23918]
[1727956064488,0.8034,2359.3,2359.0,4.23898]
[1727956064729,0.8034,2359.3,2358.9,4.23918]
[1727956065015,0.8034,2359.3,2358.8,0.7807]
[1727956065016,4.23879,2359.2,2358.8,4.23934]
[1727956066497,5.04197,2359.3,2358.9,4.23923]
[1727956066707,6.33843026,2359.3,2358.9,4.23923]
[1727956068527,10.57706026,2359.3,2358.9,4.23923]
[1727956069646,4.23874,2359.2,2358.8,4.2393]
[1727956070010,6.33843026,2359.3,2358.9,4.23915]
[1727956070405,4.23873,2359.2,2358.8,4.2393]
[1727956070740,6.33844026,2359.3,2358.9,4.23915]
[1727956071554,5.04198,2359.3,2358.9,4.23915]
[1727956075421,4.98982,2358.8,2358.4,5.04389]
[1727956075605,4.23987,2358.6,2358.2,5.04425]
[1727956076233,4.23987,2358.6,2358.2,9.2847]
[1727956076542,4.98979,2358.8,2358.4,4.24009]
[1727956076710,4.23976,2358.7,2358.3,4.24032]
[1727956076931,4.23976,2358.7,2358.2,0.8038]
[1727956076932,4.23993,2358.6,2358.2,5.04431]
[1727956078744,4.738739,2358.7,2358.3,4.24032]
[1727956078943,4.738689,2358.7,2358.3,4.24032]
[1727956079145,0.498979,2358.7,2358.2,0.8038]
[1727956079459,4.23982,2358.6,2358.2,5.04415]
[1727956079618,4.23982,2358.6,2358.2,9.28455]
[1727956079814,4.23982,2358.6,2358.2,5.04415]
[1727956081062,4.23964,2358.7,2358.3,4.24029]
[1727956081652,4.98982,2358.8,2358.4,4.24008]
[1727956081811,0.7503,2358.8,2358.5,4.23997]
[1727956082025,9.04582535,2359.1,2358.7,4.23951]
[1727956082227,4.23881,2359.2,2358.8,4.23933]
[1727956082535,5.01368,2359.3,2358.9,4.23923]
[1727956082727,9.25235,2359.3,2358.9,4.23923]
[1727956083627,9.25235,2359.3,2358.7,4.23957]
[1727956083628,4.23874,2359.2,2358.8,4.23939]
[1727956084362,4.2389,2359.1,2358.7,4.23957]
[1727956084769,4.23927,2358.9,2358.5,0.792]
[1727956084943,1.01334654,2359.1,2358.6,4.23971]
[1727956084944,4.23924,2359.0,2358.6,4.23971]
[1727956086870,0.88072535,2359.1,2358.5,0.792]
[1727956087077,5.11945535,2359.2,2358.8,4.23929]
[1727956087235,5.11945535,2359.2,2358.8,8.902569]
[1727956087436,4.23873,2359.2,2358.9,4.23924]
[1727956087638,4.23873,2359.2,2358.9,4.99964]
[1727956087971,5.89443535,2359.3,2358.9,4.99964]
[1727956088385,4.23881,2359.2,2358.9,0.7604]
[1727956088588,6.26553947,2359.2,2358.6,0.8013]
[1727956088745,5.11952535,2359.2,2358.8,4.23934]
[1727956089152,5.89438535,2359.3,2358.9,4.23916]
[1727956089386,0.88072535,2359.2,2358.6,0.8013]
[1727956089682,0.88072535,2359.2,2358.5,4.23984]
[1727956089683,5.87168535,2358.9,2358.5,4.23988]
[1727956089854,0.88072535,2358.9,2358.6,4.2398]
[1727956090059,5.11985535,2359.0,2358.6,4.2398]
[1727956090368,5.11952535,2359.2,2358.8,4.98948]
[1727956090741,4.2389,2359.1,2358.8,4.98948]
[1727956092084,0.88072535,2359.2,2358.9,4.23908]
[1727956092257,4.23898,2359.1,2358.8,0.7502]
[1727956092469,4.23898,2359.1,2358.6,0.8085]
[1727956092470,0.88072535,2359.1,2358.6,0.8085]
[1727956092669,0.88072535,2359.1,2358.1,4.04190724]
[1727956092670,4.23944,2358.8,2358.4,5.04854]
[1727956093295,5.12008535,2358.9,2358.5,4.2399]
[1727956094166,4.23936,2358.9,2358.5,4.2399]
[1727956094374,4.23981,2358.6,2358.2,5.02515]
[1727956094670,4.23981,2358.6,2358.0,7.24073]
[1727956094671,5.03311,2358.6,2358.1,4.24054]
[1727956094873,5.03311,2358.6,2358.0,5.02564]
[1727956094874,4.24005,2358.5,2358.0,5.02564]
[1727956095206,4.24023,2358.4,2358.0,5.02564]
[1727956095364,4.24016,2358.4,2358.0,4.24085]
[1727956095564,4.83138353,2358.5,2358.0,4.24085]
[1727956096401,4.24027,2358.4,2357.9,8.48187]
[1727956096565,4.24027,2358.4,2357.8,5.03012]
[1727956096566,5.06713,2358.2,2357.8,5.03012]
[1727956097510,0.8266,2358.2,2357.9,4.24092]
[1727956098068,0.8266,2358.2,2357.8,5.03012]
[1727956098069,5.06712,2358.2,2357.8,5.03012]
[1727956098296,0.8266,2358.2,2357.8,5.03012]
[1727956098460,0.8266,2358.2,2357.9,4.24104]
[1727956099304,0.8266,2358.2,2357.9,4.24095]
[1727956099704,0.8266,2358.2,2358.0,4.2408]
[1727956100066,0.52437682,2358.4,2358.0,4.2408]
[1727956100265,8.81003511,2358.7,2358.2,5.03175]
[1727956100266,8.12043535,2358.7,2358.2,5.03175]
[1727956100581,4.23981,2358.6,2358.2,4.24044]
[1727956100991,4.23981,2358.6,2358.2,8.48087]
[1727956101217,4.23981,2358.6,2358.2,4.24043]
[1727956101984,8.12041535,2358.7,2358.2,4.24043]
[1727956102173,8.12041535,2358.7,2358.3,4.24034]
[1727956102603,7.23969,2358.7,2358.3,4.24034]
[1727956102814,2.9986457,2358.7,2358.4,5.05784]
[1727956103021,5.12013535,2358.9,2358.4,5.05777]
[1727956103171,12.50983535,2359.0,2358.4,0.8177]
[1727956103375,12.50983535,2359.0,2358.6,4.23971]
[1727956103774,11.62911,2359.0,2358.6,4.23971]
[1727956104321,5.88458535,2359.1,2358.7,4.23961]
[1727956104616,4.23906,2359.1,2358.8,0.8062]
[1727956105114,5.11978535,2359.1,2358.8,0.8062]
[1727956105312,4.23906,2359.1,2358.8,0.8062]
[1727956105869,8.47807,2359.1,2358.8,0.8062]
[1727956106069,9.35879535,2359.1,2358.8,0.8062]
[1727956106274,5.11973535,2359.1,2358.8,0.8062]
[1727956106576,4.23901,2359.1,2358.8,0.8062]
[1727956108386,8.478,2359.1,2358.8,0.8062]
[1727956108589,4.23899,2359.1,2358.8,0.8062]
[1727956108832,0.88072535,2359.2,2358.8,1.3613411]
[1727956109037,0.88072535,2359.2,2358.9,4.23925]
[1727956109336,9.35807535,2359.3,2358.9,4.23925]
[1727956109488,5.11937535,2359.3,2358.9,4.23925]
[1727956109689,4.23873,2359.2,2358.8,5.04562]
[1727956110034,4.23873,2359.2,2358.8,5.6007761]
[1727956110531,5.11945535,2359.2,2358.8,5.6007761]
[1727956111331,4.23873,2359.2,2358.8,5.6007761]
[1727956111831,5.11945535,2359.2,2358.8,5.6007761]
[1727956112333,0.88072535,2359.2,2359.0,4.23896]
[1727956112533,5.58842787,2359.5,2359.1,4.23882]
[1727956112534,0.88072535,2359.4,2359.1,4.23882]
[1727956113030,0.88072535,2359.4,2359.0,5.03637]
[1727956113184,0.88072535,2359.4,2359.0,5.69391557]
[1727956113383,4.23826,2359.5,2359.0,5.69391557]
[1727956113384,5.11898535,2359.5,2359.0,5.69391557]
[1727956113589,5.11898535,2359.5,2359.1,4.2389]
[1727956114187,0.88072535,2359.5,2359.2,4.2387]
[1727956114392,0.88072535,2359.5,2359.2,5.23194456]
[1727956114608,0.88072535,2359.6,2359.0,1.45484557]
[1727956115244,0.88072535,2359.6,2359.3,4.23852]
[1727956115614,5.11877535,2359.6,2359.2,4.23871]
[1727956115828,4.23818,2359.5,2359.1,4.23883]
[1727956116024,4.23818,2359.5,2359.0,0.7973]
[1727956116025,4.23844,2359.4,2359.0,0.7973]
[1727956116224,4.23854,2359.3,2359.0,0.7973]
[1727956116630,4.23841,2359.4,2359.0,5.03636]
[1727956117372,5.11913535,2359.4,2359.0,5.03636]
[1727956117866,4.23841,2359.4,2359.0,5.03636]
[1727956118925,9.49819356,2359.4,2359.0,5.03636]
[1727956119129,9.49820356,2359.4,2359.0,4.23906]
[1727956119326,6.14044891,2359.4,2359.0,4.23906]
[1727956119511,5.25972356,2359.4,2359.0,8.47805]
[1727956119717,5.25972356,2359.4,2359.0,4.23899]
[1727956119971,6.14044891,2359.4,2359.0,4.23899]